[Event "SixDays Budapest January IM-B 2025"]
[Site "Budapest"]
[Date "2025.01.29"]
[Round "6.4"]
[White "Meers, Hubert"]
[Black "Papp, Bence"]
[Result "1/2-1/2"]
[Annotator "TA"]
[ECO "C42"]
[WhiteElo "2198"]
[BlackElo "2272"]
[PlyCount "120"]
[EventDate "2025.01.24"]
[EventType "tourn"]
[EventCountry "HUN"]
[SourceTitle "playchess.com"]
[Source "ChessBase"]
[SourceQuality "1"]
[TimeControl "5400+30"]

{[%evp 24,120,-10,-36,-25,-20,-12,-16,-10,-13,0,-12,-12,-19,-6,-12,9,8,20,0,6,-7,0,0,0,0,0,-4,-4,-17,0,0,0,0,0,-20,-22,-18,-19,-20,-7,-6,-6,-8,-10,-6,-13,-19,-40,-34,-29,-25,-17,-25,-32,-29,-60,-40,0,0,0,0,2,0,12,0,8,-32,-32,-33,-26,-93,-114,-120,0,0,0,0,0,0,0,0,0,0,0,0,0,0,0,0,0,0,0,0,0,0,0,0,0]} 1. e4 {[%emt 0:00:05]} e5 {[%emt 0:00:14]} 2. Nf3 {[%emt 0:00:13]} Nf6 {[%emt 0:00:09]} 3. Nxe5 {[%emt 0:01:02]} d6 {[%emt 0:00:11]} 4. Nf3 {[%emt 0:00:02]} Nxe4 {[%emt 0:00:07]} 5. d4 {[%emt 0:00:05]} d5 {[%emt 0:00:04]} 6. Bd3 {[%emt 0:00:08]} Nc6 {[%emt 0:00:07]} 7. O-O {[%emt 0:01:09]} Be7 {[%emt 0:00:08]} 8. c4 {[%emt 0:00:09]} Nb4 {[%emt 0:00:04]} 9. cxd5 {[%emt 0:02:36]} Nxd3 {[%emt 0:00:16]} 10. Qxd3 {[%emt 0:00:04]} Qxd5 {[%emt 0:00:07]} 11. Nc3 {[%emt 0:00:09]} Nxc3 {[%emt 0:00:08]} 12. bxc3 {[%emt 0:00:02]} O-O {[%emt 0:00:46]} 13. Bf4 {[%emt 0:00:16]} Bf5 {[%emt 0:01:21] C42: Petroff Defence: 3 Nxe5 and unusual White 3rd moves.} 14. Qe2 {[%emt 0:08:38]} Bd6 {[%emt 0:02:48]} 15. Bxd6 {[%emt 0:03:32]} cxd6 $146 {[%emt 0:00:17]} (15... Qxd6 16. Rfe1 Qc6 17. Qb2 f6 18. Nh4 Be6 19. Re3 Kh8 20. Rae1 Bf7 21. Nf5 Rfe8 22. Rxe8+ Rxe8 23. Rxe8+ Bxe8 {½-½ Gac,G-Kubikova,A Wch U10 Girls 1997 (9)}) 16. c4 {[%emt 0:04:53]} Qe4 {[%emt 0:00:26]} 17. Qxe4 {[%emt 0:02:43]} Bxe4 {[%emt 0:00:02]} 18. Nd2 {[%emt 0:00:05]} Bd3 {[%emt 0:00:10]} 19. Rfc1 {[%emt 0:01:24]} Rac8 {[%emt 0:02:52]} 20. Rc3 {[%emt 0:00:34]} Bf5 {[%emt 0:00:10]} 21. Rb3 {[%emt 0:07:15]} Rc7 {[%emt 0:03:53]} 22. Re1 {[%emt 0:01:31]} h6 {[%emt 0:02:07]} 23. f3 {[%emt 0:07:51]} Rd8 {[%emt 0:04:20]} 24. Kf2 {[%emt 0:00:15]} Kf8 {[%emt 0:00:56]} 25. Rb5 {[%emt 0:02:53]} Bd7 {[%emt 0:09:02]} 26. Rb4 {[%emt 0:00:11]} b5 {[%emt 0:12:50]} 27. cxb5 {[%emt 0:06:11]} Rc2 {[%emt 0:00:17][%csl LRa2,LRd2]} 28. Re2 {[%emt 0:03:53]} Rxa2 {[%emt 0:00:47]} 29. Ne4 {[%emt 0:03:51]} Rxe2+ {[%emt 0:00:08]} 30. Kxe2 $11 {[%emt 0:00:03][%mdl 4096] Endgame KRB-KRN} Rb8 {[%emt 0:01:31]} 31. Nxd6 {[%emt 0:09:25]} a5 {[%emt 0:03:51]} 32. Rb2 {[%emt 0:06:53]} Ke7 {[%emt 0:00:29]} 33. Ne4 {[%emt 0:00:36]} Rxb5 {[%emt 0:01:05]} 34. Ra2 {[%emt 0:00:03]} Be6 {[%emt 0:03:13]} 35. Ra3 {[%emt 0:00:26]} Rb2+ {[%emt 0:00:39]} 36. Nd2 {[%emt 0:00:04]} Ra2 {[%emt 0:00:23]} 37. Rc3 {[%emt 0:02:15]} Kd6 {[%emt 0:00:32]} 38. Ke3 {[%emt 0:01:26]} f5 {[%emt 0:02:59]} 39. h4 {[%emt 0:02:27]} a4 {[%emt 0:07:11]} 40. Nc4+ {[%emt 0:05:22]} Kc6 {[%emt 0:04:13][%cal Og7g5]} 41. Ne5+ {[%emt 0:01:11]} Kb7 {[%emt 0:01:28][%cal Oe6g8]} 42. Nd3 {[%emt 0:01:32]} Kb6 {[%emt 0:22:24][%cal Oa2a1] [#]} (42... Rxg2 $2 43. Nc5+ Kb6 44. Nxe6 $18) 43. d5 $1 {[%emt 0:01:01]} Bd7 {[%emt 0:01:53]} (43... Bxd5 $6 44. Nb4 $16) 44. d6 {[%emt 0:04:22]} Rxg2 {[%emt 0:01:32]} 45. Nf4 {[%emt 0:01:54]} Rb2 {[%emt 0:07:42]} 46. Nd5+ {[%emt 0:00:42]} Ka6 {[%emt 0:00:12]} 47. Kd4 {[%emt 0:04:26] [#]} (47. Kd3 $11) 47... Rb3 $1 $17 {[%emt 0:02:19]} 48. Rc7 {[%emt 0:04:10] [#]} Rb7 {[%emt 0:00:11]} (48... a3 $1 $17 {[%cal Ra3a2] Hoping for ...a2.} 49. Rc1 (49. Rxd7 $2 a2 $19) 49... Rxf3) 49. Rc3 $11 {[%emt 0:00:05] The position is equal.} g5 {[%emt 0:02:33]} 50. hxg5 {[%emt 0:00:13]} hxg5 {[%emt 0:00:03]} 51. Nf6 {[%emt 0:00:51]} g4 {[%emt 0:04:10]} 52. fxg4 {[%emt 0:00:07]} fxg4 {[%emt 0:00:01]} 53. Nxd7 {[%emt 0:01:32]} Rxd7 {[%emt 0:00:02] KR-KR. Black is a pawn up.} 54. Ke5 {[%emt 0:03:41]} Kb5 {[%emt 0:00:34]} 55. Ke6 {[%emt 0:00:09]} Rd8 {[%emt 0:00:44]} 56. Ke7 {[%emt 0:00:37]} Rg8 {[%emt 0:00:38]} 57. d7 {[%emt 0:00:05]} Kb4 {[%emt 0:00:38]} 58. Rg3 {[%emt 0:00:10][%cal Og3g4] Strongly threatening Rxg4+!.} (58. d8=Q $2 {perishes.} Rxd8 59. Rg3 Rd4 $19) (58. Rc8 $5 Rg7+ $8 59. Kd6 Rxd7+ 60. Kxd7 $11) 58... Rg7+ {[%emt 0:00:25]} 59. Ke6 $1 {[%emt 0:00:10]} Rxd7 {[%emt 0:00:31]} 60. Kxd7 {[%emt 0:00:04]} a3 {[%emt 0:00:09] Weighted Error Value: White=0.06 (flawless) /Black=0.06 (flawless)   Mistake:       	White=1     	Black=1      Inaccurate:     	White=1     	Black=1      OK:         	White=24    	Black=21     Best:        	White=1     	Black=2      Strong:       	White=1     	Black=1} 1/2-1/2

[Event "SixDays Budapest January IM-B 2025"]
[Site "Budapest"]
[Date "2025.01.29"]
[Round "6.5"]
[White "Senthil Maran K"]
[Black "Horvath, David"]
[Result "1-0"]
[Annotator "TA"]
[ECO "A06"]
[WhiteElo "2398"]
[BlackElo "2299"]
[PlyCount "63"]
[EventDate "2025.01.24"]
[EventType "tourn"]
[EventCountry "HUN"]
[SourceTitle "playchess.com"]
[Source "ChessBase"]
[SourceQuality "1"]
[TimeControl "5400+30"]

{[%evp 19,63,55,49,53,66,40,33,27,71,67,112,63,77,91,80,69,66,87,79,79,80,66,77,59,88,97,112,111,110,121,133,135,137,140,140,142,140,139,157,158,493,522,504,480,671,667]} 1. Nf3 {[%emt 0:01:38]} d5 {[%emt 0:00:39]} 2. g3 {[%emt 0:00:09]} Nf6 {[%emt 0:00:07]} 3. Bg2 {[%emt 0:00:08]} c5 {[%emt 0:00:05]} 4. O-O {[%emt 0:00:32]} e6 {[%emt 0:00:05]} 5. d4 {[%emt 0:02:50]} cxd4 {[%emt 0:00:27]} 6. Nxd4 {[%emt 0:00:09]} e5 {[%emt 0:03:20]} 7. Nb3 {[%emt 0:00:13]} Nc6 {[%emt 0:21:16]} 8. Bg5 {[%emt 0:05:05]} Be6 {[%emt 0:00:08]} 9. Nc3 {[%emt 0:00:45]} d4 {[%emt 0:00:08]} 10. Ne4 {[%emt 0:00:24]} Be7 {[%emt 0:00:51]} 11. Nec5 {[%emt 0:03:04] D02: 1 d4 d5 2 Nf3 sidelines, including 2...Nf6 3 g3 and 2...Nf6 3 Bf4.} Bc8 {[%emt 0:07:19]} 12. c3 {[%emt 0:01:22]} dxc3 {[%emt 0:13:17]} 13. Qxd8+ {[%emt 0:04:19] White is slightly better.} Kxd8 {[%emt 0:00:06][%cal Be8d8,Bd8c7,Bc7b7][%mdl 32]} 14. bxc3 {[%emt 0:01:11]} Kc7 {[%emt 0:06:15]} 15. Nd3 {[%emt 0:05:15] White has more active pieces.} (15. f4 $1 $16) 15... Bf5 $146 {[%emt 0:08:35]} (15... h6 16. Be3 Bd6 17. c4 Re8 18. c5 Bf8 19. h3 Be6 20. Rab1 Bd5 21. Rb2 g5 {½-½ Fyllingen,R (2378)-Berelowitsch,A (2533) Bergen Sommer op 2002 (3)}) 16. Bxc6 {[%emt 0:11:56]} Bxd3 {[%emt 0:00:11]} 17. Bxb7 {[%emt 0:01:02]} (17. exd3 {simplifies} Kxc6 18. Rae1 Bd6 19. f4) 17... Bxe2 {[%emt 0:00:09]} 18. Rfe1 {[%emt 0:00:44]} Kxb7 {[%emt 0:01:01]} 19. Rxe2 {[%emt 0:00:03]} Bd6 {[%emt 0:00:13]} 20. Na5+ {[%emt 0:02:38]} Kc7 {[%emt 0:02:16]} 21. Nc4 $36 {[%emt 0:01:04][%mdl 2048] White fights for an advantage.} Rhe8 {[%emt 0:06:26]} 22. Rd1 {[%emt 0:13:39]} Bc5 {[%emt 0:13:50]} 23. Nxe5 {[%emt 0:04:49]} Ng4 {[%emt 0:00:09]} 24. Bf4 {[%emt 0:01:44]} Nxe5 {[%emt 0:00:18]} 25. Rxe5 {[%emt 0:01:09]} Kc6 {[%emt 0:00:03] [#]} 26. Rf5 $1 {[%emt 0:02:18]} f6 {[%emt 0:05:38] [#]} 27. Rdd5 {[%emt 0:00:59]} Bf8 {[%emt 0:00:17]} 28. Rd4 {[%emt 0:02:40]} a6 {[%emt 0:05:54]} 29. Rc4+ {[%emt 0:01:40]} Kb7 $2 {[%emt 0:01:07]} (29... Kd7 $16 30. Rc7+ Ke6) 30. Rc7+ $18 {[%emt 0:02:51] White is clearly winning.} Kb6 {[%emt 0:00:01]} 31. a4 {[%emt 0:00:21][%csl Gf5][%cal Ra4a5]} Re5 {[%emt 0:01:39]} 32. Bxe5 {[%emt 0:00:36] Weighted Error Value: White=0.05 (flawless) /Black=0.35  Loses game:     	---       	Black=1      Mistake:       	White=1     	---        Inaccurate:     	White=1     	Black=4      OK:         	White=8     	Black=6      Best:        	White=5     	Black=4      Strong:       	White=1     	---} 1-0

[Event "SixDays Budapest January IM-B 2025"]
[Site "Budapest"]
[Date "2025.01.30"]
[Round "7.1"]
[White "Horvath, David"]
[Black "Subramanian, Anusha"]
[Result "1/2-1/2"]
[Annotator "TA"]
[ECO "D35"]
[WhiteElo "2299"]
[BlackElo "2044"]
[PlyCount "37"]
[EventDate "2025.01.24"]
[EventType "tourn"]
[EventCountry "HUN"]
[SourceTitle "playchess.com"]
[Source "ChessBase"]
[SourceQuality "1"]
[TimeControl "5400+30"]

{[%evp 20,37,22,22,22,13,20,0,0,6,4,-14,-9,-15,-17,-58,-56,-52,-55,-77]} 1. c4 {[%emt 0:00:02]} e6 {[%emt 0:00:05]} 2. Nc3 {[%emt 0:00:07]} d5 {[%emt 0:00:05]} 3. d4 {[%emt 0:00:08]} Nf6 {[%emt 0:00:05]} 4. cxd5 {[%emt 0:00:11]} exd5 {[%emt 0:00:06]} 5. Bg5 {[%emt 0:00:06]} c6 {[%emt 0:00:05]} 6. e3 {[%emt 0:00:13]} h6 {[%emt 0:00:07]} 7. Bh4 {[%emt 0:00:05]} Be7 {[%emt 0:00:05]} 8. Bd3 {[%emt 0:00:20]} O-O {[%emt 0:00:21]} 9. Qc2 {[%emt 0:06:35]} Re8 {[%emt 0:00:50]} 10. Nge2 {[%emt 0:00:19]} Nbd7 {[%emt 0:02:17]} 11. O-O {[%emt 0:03:00]} b6 {[%emt 0:08:22] 11...Nh5 is becoming the main line. D36: Queen's Gambit Declined: Exchange Variation: Main line (5 Bg5 c6 6 Qc2).} 12. Rae1 {[%emt 0:18:32]} Bb7 {[%emt 0:01:01]} 13. f3 {[%emt 0:06:22]} c5 {[%emt 0:02:44] The position is equal.} 14. Bf2 {[%emt 0:12:09]} a6 {[%emt 0:12:04]} 15. Qd2 {[%emt 0:01:39]} b5 $146 {[%emt 0:02:53]} (15... c4 16. Bb1 b5 17. Ng3 b4 18. Nce2 a5 19. e4 dxe4 20. fxe4 Bf8 21. e5 Nxe5 22. Rd1 Neg4 {0-1 Kawenski,L-Stefanik,M POL-chT U19 2nd League 2001 (3)}) 16. dxc5 {[%emt 0:05:15]} Bxc5 {[%emt 0:00:00]} 17. a4 {[%emt 0:01:53]} b4 {[%emt 0:03:52]} 18. Na2 {[%emt 0:01:19][%cal Oe1c1]} Ne5 {[%emt 0:08:10][%cal Of6e4] [#] Threatens to win with ...Ne4!.} 19. Rc1 {[%emt 0:09:01] White got outplayed after the opening.   Weighted Error Value: White=0.11 (very precise) /Black=0.02 (flawless)   Inaccurate:     	White=1     	---        OK:         	White=3     	Black=3      Best:        	---       	Black=1} 1/2-1/2

[Event "SixDays Budapest January IM-B 2025"]
[Site "Budapest"]
[Date "2025.01.30"]
[Round "7.2"]
[White "Papp, Bence"]
[Black "Senthil Maran K"]
[Result "0-1"]
[Annotator "TA"]
[ECO "B31"]
[WhiteElo "2272"]
[BlackElo "2398"]
[PlyCount "74"]
[EventDate "2025.01.24"]
[EventType "tourn"]
[EventCountry "HUN"]
[SourceTitle "playchess.com"]
[Source "ChessBase"]
[SourceQuality "1"]
[TimeControl "5400+30"]

{[%evp 10,74,24,24,16,27,19,8,17,12,34,-21,-8,-10,-23,-14,0,-41,58,0,-5,-49,-57,-48,-57,-60,-38,-57,-43,-58,-47,-56,-42,-48,-18,-32,-30,-34,-35,-44,-30,-72,-56,-105,-94,-109,-52,-279,-279,-284,-275,-276,-266,-417,-430,-710,-418,-387,-403,-397,-402,-856,-674,-836,-814,-690,-536]} 1. e4 {[%emt 0:00:05]} c5 {[%emt 0:14:18]} 2. Nf3 {[%emt 0:00:09]} Nc6 {[%emt 0:00:21]} 3. Bb5 {[%emt 0:00:09]} g6 {[%emt 0:00:29]} 4. Bxc6 {[%emt 0:00:07]} bxc6 {[%emt 0:01:29]} 5. O-O {[%emt 0:00:11]} Bg7 {[%emt 0:00:07]} 6. Re1 {[%emt 0:00:06]} Rb8 {[%emt 0:01:14]} 7. c3 {[%emt 0:00:50]} Nf6 {[%emt 0:00:28]} 8. e5 {[%emt 0:02:57]} Nd5 {[%emt 0:00:10] The position is equal.} 9. c4 {[%emt 0:00:14]} Nb4 {[%emt 0:07:04]} 10. d3 {[%emt 0:07:38]} (10. d4 $14) 10... O-O $11 {[%emt 0:03:13]} 11. Nc3 {[%emt 0:03:30]} d5 {[%emt 0:02:04] Dodges Ne4} 12. a3 {[%emt 0:00:39]} Na6 {[%emt 0:01:11]} 13. h3 {[%emt 0:01:05]} Nc7 {[%emt 0:05:30]} (13... dxc4 $15 14. dxc4 Qxd1 15. Nxd1 Be6) 14. cxd5 {[%emt 0:07:17]} (14. Na4 $1 $14) 14... cxd5 {[%emt 0:03:13]} 15. d4 {[%emt 0:00:06]} c4 {[%emt 0:04:32]} 16. b4 {[%emt 0:08:47] [#]} a5 $1 {[%emt 0:18:06]} 17. bxa5 {[%emt 0:02:20]} Ne6 {[%emt 0:02:30]} 18. Bd2 {[%emt 0:00:50]} Qxa5 {[%emt 0:00:18]} 19. Ne2 {[%emt 0:05:17]} Qc7 {[%emt 0:04:34]} 20. Bb4 {[%emt 0:00:10]} Ba6 {[%emt 0:01:39]} 21. Qd2 {[%emt 0:01:11]} Rfc8 {[%emt 0:01:17]} 22. Nc3 {[%emt 0:01:47]} Qd7 {[%emt 0:01:00]} 23. Rab1 {[%emt 0:01:25]} Rb7 {[%emt 0:01:47]} 24. Nh2 {[%emt 0:03:12]} h5 {[%emt 0:01:47]} 25. g3 {[%emt 0:14:21]} Nd8 {[%emt 0:01:45]} 26. Nf1 {[%emt 0:04:52]} (26. Nf3 $15) 26... Nc6 {[%emt 0:00:30]} 27. Ne3 {[%emt 0:04:10]} e6 {[%emt 0:01:48]} (27... Bh6 $17 28. h4 Rcb8) 28. Bd6 $2 {[%emt 0:02:15] [#] Now White is beyond hope.} (28. Nc2 $15) 28... Nxd4 $1 $19 {[%emt 0:00:55][%mdl 512]} 29. Qxd4 {[%emt 0:00:37] aiming for Rxb7.} Qxd6 {[%emt 0:00:19]} 30. Rxb7 {[%emt 0:01:48]} Bxb7 {[%emt 0:00:45]} 31. exd6 {[%emt 0:05:38]} (31. Nc2 {was necessary.} Qc5 32. Qxc5 Rxc5 33. Nd4) 31... Bxd4 {[%emt 0:00:08]} 32. Nexd5 {[%emt 0:00:06]} (32. Nb5 $142 Bc5 33. Ra1) 32... Bxd5 {[%emt 0:03:28]} 33. Nxd5 {[%emt 0:00:12]} exd5 {[%emt 0:00:12] KRB-KR} 34. d7 {[%emt 0:00:27]} Rf8 {[%emt 0:00:05]} 35. Rd1 {[%emt 0:02:13] [#]} (35. Re8 $142 Bb6 36. a4) 35... c3 $1 {[%emt 0:00:59][%cal Of8d8] Threatens to win with ...Rd8! Black is clearly winning.} 36. Kf1 {[%emt 0:00:57] [#]} Rd8 $1 {[%emt 0:02:14]} 37. Ke2 {[%emt 0:00:09]} c2 {[%emt 0:00:06] Weighted Error Value: White=0.63/Black=0.26 (precise) .  Loses game:     	White=1     	---        Mistake:       	White=6     	Black=2      Inaccurate:     	White=3     	Black=2      OK:         	White=10    	Black=12     Best:        	White=1     	Black=3} 0-1

[Event "SixDays Budapest January IM-B 2025"]
[Site "Budapest"]
[Date "2025.01.30"]
[Round "7.3"]
[White "Tancsa, Tamas"]
[Black "Meers, Hubert"]
[Result "0-1"]
[Annotator "TA"]
[ECO "B40"]
[WhiteElo "2192"]
[BlackElo "2198"]
[PlyCount "100"]
[EventDate "2025.01.24"]
[EventType "tourn"]
[EventCountry "HUN"]
[SourceTitle "playchess.com"]
[Source "ChessBase"]
[SourceQuality "1"]
[TimeControl "5400+30"]

{[%evp 27,100,6,0,0,10,4,26,-10,21,18,29,18,30,23,32,15,43,55,134,123,136,112,317,6,63,0,0,0,0,0,0,6,8,0,0,0,0,-59,-57,-411,-279,-288,-287,-524,-694,-654,-596,-655,-668,-672,-640,-611,-591,-589,-485,-1048,-997,-997,-900,-979,-970,-1778,-2088,-1539,-732,-754,-724,-29976,-29977,-29957,-29966,-29967,-5114,-29985,-29986]} 1. e4 {[%emt 0:00:03]} c5 {[%emt 0:00:07]} 2. Nf3 {[%emt 0:00:12]} e6 {[%emt 0:00:05]} 3. d4 {[%emt 0:00:10]} cxd4 {[%emt 0:00:06]} 4. Nxd4 {[%emt 0:00:07]} Nf6 {[%emt 0:00:05]} 5. Nc3 {[%emt 0:00:23]} Nc6 {[%emt 0:00:04]} 6. Nxc6 {[%emt 0:01:01]} bxc6 {[%emt 0:00:05]} 7. e5 {[%emt 0:00:06]} Nd5 {[%emt 0:00:01]} 8. Ne4 {[%emt 0:00:06]} Qc7 {[%emt 0:00:02]} 9. f4 {[%emt 0:00:06]} Qb6 {[%emt 0:00:03]} 10. c4 {[%emt 0:00:13]} Bb4+ {[%emt 0:00:04]} 11. Ke2 {[%emt 0:00:05]} f5 {[%emt 0:00:05]} 12. Nf2 {[%emt 0:03:48]} Ba6 {[%emt 0:00:52]} 13. Kf3 {[%emt 0:05:24]} Ne7 {[%emt 0:00:13]} 14. Be3 {[%emt 0:12:41]} Bc5 $1 {[%emt 0:09:45]} 15. Bxc5 {[%emt 0:00:16] B45: Sicilian Four Knights.} Qxc5 {[%emt 0:00:02]} 16. Qd6 {[%emt 0:00:10]} Qb6 {[%emt 0:00:38] A sharp opening} 17. b4 {[%emt 0:12:50] White has an edge.} Bb7 {[%emt 0:01:09]} (17... c5 {keeps more tension.} 18. Rd1 Bb7+ 19. Kg3 cxb4 20. Qxd7+ Kf7) 18. Qc5 {[%emt 0:00:44]} g5 {[%emt 0:07:10]} 19. g3 {[%emt 0:08:41]} Qd8 $146 {[%emt 0:28:57]} (19... gxf4 20. gxf4 Qxc5 21. bxc5 Rg8) (19... g4+ 20. Ke3 h5 21. h4 Qc7 22. Bg2 Kf7 23. Rhd1 Rhd8 24. Nd3 a5 25. a3 Ba6 {0-1 Scherbinin,K (2168)-Al Hosani,O (2202) Titled Tuesday intern op 19th Oct blitz 2021 (3)}) 20. Be2 {[%emt 0:12:58]} gxf4 {[%emt 0:02:51]} (20... a5 {simplifies} 21. Ke3 axb4 22. Qxb4 gxf4+ 23. gxf4 Ba6) 21. gxf4 {[%emt 0:00:30]} Ng6 {[%emt 0:00:03]} 22. Ke3 {[%emt 0:09:46]} Qh4 {[%emt 0:17:16]} (22... a5 $14) 23. Nd3 $16 {[%emt 0:00:52]} Kf7 {[%emt 0:01:27][%cal Oa7a5]} 24. Qd4 {[%emt 0:02:30]} d6 {[%emt 0:06:44]} 25. Qxd6 $2 {[%emt 0:04:31]} (25. exd6 $18 {and Rhg1 should not be overlooked} a5 26. Rhb1) 25... Rhe8 $1 $11 {[%emt 0:00:11][%cal Oc6c5]} 26. Rhf1 {[%emt 0:02:42]} (26. Raf1 $1 $14) 26... c5 $1 {[%emt 0:00:43]} 27. Nxc5 {[%emt 0:01:31]} Bg2 {[%emt 0:00:13] and ...Qh3+ would now be decisive} 28. Rf2 {[%emt 0:19:52]} Qh3+ {[%emt 0:08:55]} (28... Rad8 $5 29. Qc7+ $8 Kg8 $16) 29. Bf3 $1 {[%emt 0:00:01]} Nh4 {[%emt 0:00:07] [#] Dancing on a razor blade.} 30. Rg1 $1 {[%emt 0:00:02][%cal Rg1g2]} Nxf3 {[%emt 0:00:53]} (30... Bxf3 $2 31. Rg3 $18) 31. Rgxg2 {[%emt 0:00:49] Qc7+ would kill now.} Nxh2+ {[%emt 0:06:11]} 32. Ke2 {[%emt 0:01:15]} (32. Kd2 $11 Ng4 33. Rxg4 (33. Re2 $2 Rad8 $19) 33... fxg4 34. Ne4) 32... Ng4 $15 {[%emt 0:00:02]} 33. Nxe6 $2 {[%emt 0:02:01][%mdl 8192]} Qe3+ {[%emt 0:00:03]} 34. Kd1 {[%emt 0:00:31]} Nxf2+ {[%emt 0:00:33]} 35. Rxf2 $2 {[%emt 0:00:26]} (35. Kc2 Qe4+ (35... Rxe6 36. Qd7+ Kf8 37. Qg7+ Ke8 38. Qg8+ Kd7 39. Rg7+ Re7 40. Qd5+ Kc8 41. Qc6+ Kd8 42. Rg8+) 36. Kb3 Rxe6 (36... Qxg2 37. Ng5+ $17) 37. Qd7+ Re7 38. Rg7+ Kxg7 39. Qxe7+ Kg8 40. Qe6+ Kh8 (40... Kf8 41. Qf6+ Ke8 42. Qe6+ Kd8 43. Qf6+ Kc7 44. Qe7+ Kc8 45. Qe8+ Kb7 46. Qe7+ Kb6 47. c5+ Kc6 48. Qd6+ Kb7 49. Qd7+ Kb8 50. Qd8+ Kb7 51. Qd7+ Kb8 52. Qd8+ Kb7 53. Qe7+ Kc8 54. Qe8+ Kc7 55. Qf7+ Kd8 56. Qg8+ Ke7 57. Qg7+ Ke8 58. Qg8+ Ke7 59. Qg7+ Ke8 60. Qh8+ Kf7 61. Qxh7+ Kf8 62. Qh8+ Kf7 63. Qh7+ Kf8 64. Qh6+ Kg8 65. Qg6+ Kh8 66. Qh6+ Kg8 67. Qe6+ Kh8 68. Qf6+ Kg8 69. Qg6+ Kh8 70. Qh6+ Kg8 $11) 41. Qf6+ Kg8 42. Qe6+ (42. Qg5+ Kf8 $11)) 35... Qxf2 $19 {[%emt 0:05:51]} 36. Ng5+ {[%emt 0:00:28]} Kg8 {[%emt 0:00:04][%cal Oa8d8] ( -> ...Rad8!)} 37. Qd5+ {[%emt 0:00:19]} Kh8 {[%emt 0:00:06]} 38. Nf7+ {[%emt 0:00:47]} Kg7 {[%emt 0:00:07]} 39. Nd6 {[%emt 0:00:15]} Rf8 {[%emt 0:01:36] Inhibits Qf7+.} 40. e6 {[%emt 0:00:46]} Rad8 {[%emt 0:01:28]} (40... Qxa2 41. e7 $17) 41. e7 {[%emt 0:00:30]} (41. Qe5+ $142 Kg8 (41... Rf6 42. c5 $17) 42. e7 Rxd6+ (42... Qxa2 $2 43. exd8=Q Qb1+ 44. Ke2 $18) 43. Qxd6 Qf3+ 44. Kd2 Qg2+ 45. Kc3 Qg7+ 46. Kb3) 41... Qf1+ {[%emt 0:00:04]} ({Inferior is} 41... Qxa2 42. Nxf5+ (42. exd8=B Qb1+ 43. Kd2 Qxb4+ 44. Kc2 Qa4+ 45. Kc3 Qa3+ 46. Kd4 Qa1+ 47. Kc5 Rxd8 $11) (42. exd8=N Qb3+ 43. Ke2 Qc2+ 44. Kf1 Qc1+ 45. Kg2 Qc2+ 46. Kf1 Qc1+ 47. Ke2 Qc2+ 48. Kf1 $11) (42. exd8=Q Qb1+ 43. Ke2 Qc2+ 44. Kf1 Qb1+ 45. Kf2 Qb2+ 46. Kg1 Qc1+ 47. Kf2 Qb2+ 48. Kf1 Qb1+ 49. Kg2 Qc2+ 50. Kh3 Qc3+ 51. Kg2 Qb2+ 52. Kg3 Qc3+ 53. Kh2 Qb2+ 54. Kg1 Qc1+ 55. Kg2 Qc2+ 56. Kf3 Qb3+ 57. Kg2 Qb2+ 58. Kg3 Qc3+ 59. Kh2 Qc2+ 60. Kh3 Qc3+ 61. Kg2 Qb2+ $11) 42... Rxf5 43. exd8=Q $14) 42. Kc2 {[%emt 0:00:12]} Qe2+ {[%emt 0:00:05]} (42... Qxf4 $2 43. exd8=R (43. exf8=R Rxf8 44. c5 Kf6 $17) 43... Qf2+ 44. Kb3 Rxd8 45. Qf7+ (45. Qxf5 $2 {loses.} Qg3+ 46. Ka4 Qxd6 $19) (45. Nxf5+ Kg6 $18) 45... Kh6 46. Qf6+ (46. Nxf5+ Kg5 $18) 46... Kh5 47. Qxd8 $18) 43. Kb3 {[%emt 0:00:48]} Qxe7 {[%emt 0:00:06]} 44. Nxf5+ {[%emt 0:00:31] [#]} Rxf5 $1 {[%emt 0:00:05]} 45. Qxf5 {[%emt 0:00:03]} Qf6 {[%emt 0:00:44]} 46. Qe4 {[%emt 0:00:26]} Qd6 {[%emt 0:01:48] ( -> ...Qd3+)} 47. c5 {[%emt 0:00:51]} Qd3+ {[%emt 0:01:19]} 48. Qxd3 {[%emt 0:00:04]} Rxd3+ {[%emt 0:00:02]} 49. Kc4 {[%emt 0:00:19]} Rd1 {[%emt 0:00:09] ( -> ...h5)} 50. a4 {[%emt 0:00:31]} h5 {[%emt 0:00:19] What a bad dream for White.   Weighted Error Value: White=0.52/Black=0.34  Loses game:     	White=1     	Black=1      Missed win:     	White=1     	---        Mistake:       	White=4     	Black=1      Inaccurate:     	White=1     	Black=3      OK:         	White=7     	Black=4      Best:        	White=4     	Black=6      Strong:       	White=1     	Black=2} 0-1